Cogmind - Beta 14 @@@ ROGUE MODE // 2025.04.25 @ 18:35:34 Player: celerysam Result: Destroyed by Y-45 Defender with Beam Rifle Performance ------------- Evolutions (2) 1000 Regions Visited (3) 600 Robots Destroyed (49) 245 Value Destroyed (1395) 1395 Prototype IDs (3) 60 Alien Tech Used (0) 0 Bonus (4) 4 TOTAL SCORE: 3304 Bonus ------- High Alert Combat Kills 4 Cogmind --------- Core Integrity 0/550 Matter 290/300 Energy 88/100 System Corruption 0% Temperature Cool (9) Movement Core (50) Location -8/Materials Parts ------- > --- POWER (1) -------- (None) > --- PROPULSION (4) --- (None) > --- UTILITY (4) ------ Hacking Suite > --- WEAPON (2) ------- Heavy Hammer > --- INVENTORY (5) ---- Micro Nuclear Core Structural Scanner Seismic Detector Reaction Control System Hacking Suite Peak State ------------ > --- POWER ------------ Improved Ion Engine > --- PROPULSION ------- Light Treads Light Treads Compact Wheel > --- UTILITY ---------- Advanced Heat Sink High-capacity Storage Unit Compact Matter Pod Particle Charger > --- WEAPON ----------- Heavy EM Shotgun Pulse Rifle > --- INVENTORY -------- Improved Ion Engine Airjet Small Storage Unit Huge Storage Unit Structural Scanner Improved Terrain Scanner Seismic Detector ECM Suite Hacking Suite Hacking Suite Hacking Suite Pulse Rifle Light EM Pulse Cannon Minigun High-powered Shotgun Grenade Launcher Datajack Heavy Hammer [Rating: 27] Favorites ----------- Power Ion Engine Engine Ion Engine Power Core Light Nuclear Core Propulsion Light Treads Treads Light Treads Wheel Compact Wheel Hover Unit Aerolev Unit Utility Structural Scanner Device Structural Scanner Storage High-capacity Storage Unit Hackware Hacking Suite Protection Light Armor Plating Weapon Assault Rifle Energy Gun Pulse Rifle Ballistic Gun Assault Rifle Impact Weapon Heavy Hammer Build | -11 -10 -9 -8 ------- Run | Yrd Mat Mat Mat Slots Evolved 4 | . . 2 2 Power . | . . . . Propulsion 2 | . . 1 1 Utility 2 | . . 1 1 Weapon . | . . . . Parts Attached 60 | 5 8 21 26 Power 11 | . 2 6 3 Engine 8 | . 2 3 3 Core 3 | . . 3 . Reactor . | . . . . Propulsion 16 | 2 2 4 8 Treads 8 | . 2 4 2 Leg . | . . . . Wheel 5 | 2 . . 3 Hover 3 | . . . 3 Flight . | . . . . Utility 16 | 1 4 2 9 Device 9 | . 2 1 6 Storage 4 | 1 2 . 1 Processor . | . . . . Hackware 1 | . . . 1 Protection 2 | . . 1 1 Artifact . | . . . . Weapon 17 | 2 . 9 6 Energy Gun 6 | . . 3 3 Energy Cannon . | . . . . Ballistic Gun 7 | 2 . 4 1 Ballistic Cannon . | . . . . Launcher . | . . . . Special Weapon . | . . . . Impact Weapon 4 | . . 2 2 Slashing Weapon . | . . . . Piercing Weapon . | . . . . Special Melee Weapon . | . . . . Unidentified Prototypes 3 | . . 1 2 Parts Lost 22 | . 1 2 19 Power 3 | . . . 3 Propulsion 9 | . 1 . 8 Utility 7 | . . 1 6 Weapon 3 | . . 1 2 Highest Loss Streak 10 | . 1 1 10 To Critical Strikes . | . . . . Average Slot Usage (%) 92 | . 93 99 78 Engine 8 | . 12 4 6 Core 2 | . . 6 . Treads 21 | . 14 33 14 Wheel 5 | . 9 . 7 Device 13 | . 13 11 19 Storage 12 | . 14 11 11 Protection 4 | . . 10 1 Energy Gun 5 | . . 7 12 Ballistic Gun 16 | . 28 12 1 Impact Weapon 1 | . . 2 . Peak Build Rating 27 | 5 9 19 27 Average Rating 13 | 3 7 16 21 On Entrance 8 | . 5 8 19 Naked Turns . | . . . . Heaviest Build 90 | 9 90 55 59 Greatest Support 60 | 26 40 60 60 Greatest Overweight (x) 14 | . 5 . 14 Average Overweight (x) 1 | . 2 . . Largest Inventory Capacity 25 | 8 25 20 20 Average Capacity 20 | 7 22 20 17 Most Carried 20 | 8 14 20 20 Average Carried 14 | 4 10 18 17 Final Capacity 20 | 8 20 20 5 Final Carried 19 | 7 14 19 5 Class Distribution -------------------- 84% | Mutant 11% | Scavenger-Mutant 3% | Infiltrator-Mutant Dominant Class ---------------- Mutant | -10/Materials Mutant | -9/Materials Scavenger-Mutant | -8/Materials Resources | -11 -10 -9 -8 ----------- Run | Yrd Mat Mat Mat Matter Collected 1141 | 186 115 411 429 Remotely . | . . . . Salvage Created 1704 | . 359 663 682 Parts 103 | . 22 45 36 Haulers Intercepted . | . . . . Recyclers Shooed 2 | . 1 . 1 Parts Field Recycled . | . . . . Retrieved Matter . | . . . . Parts Self-Destructed . | . . . . Prevented . | . . . . Kills | -11 -10 -9 -8 ------- Run | Yrd Mat Mat Mat Combat Hostiles Destroyed 45 | . 13 17 15 Guns 45 | . 13 17 15 Classes Destroyed 5 | . 3 1 1 Recycler 1 | . . . 1 Watcher 3 | . 1 1 1 Swarmer 18 | . 8 4 6 Grunt 19 | . 5 6 8 Sentry 8 | . . 7 1 Best Kill Streak 7 | . 4 5 7 Combat Bots Only 5 | . 4 5 5 Max Kills in Single Turn 2 | . 1 1 2 Gunslinging 1 | . . . 1 Exploded . | . . . . Melee . | . . . . Uniques/NPCs Destroyed . | . . . . Combat | -11 -10 -9 -8 -------- Run | Yrd Mat Mat Mat Hostile Shots Fired 337 | . 46 83 208 Missed 99 | . 12 32 55 Damage Taken 3086 | . 346 662 2078 Core 650 | . 60 38 552 Absorbed by Shields . | . . . . Core Remaining (%) 88 | 100 76 90 . Volleys Fired 109 | . 27 43 39 Largest 2 | . 2 2 2 Hottest 113 | . 40 88 113 Shots Fired 205 | . 54 75 76 Gun 205 | . 54 75 76 Cannon . | . . . . Launcher . | . . . . Special . | . . . . Kinetic 103 | . 54 45 4 Thermal 53 | . . 20 33 Explosive . | . . . . Electromagnetic 49 | . . 10 39 Robot Hit Streak 19 | . 6 14 19 Robot Miss Streak 4 | . 4 4 4 Penetration Max . | . . . . Secondary Targets 4 | . . 1 3 Max Gunslinging Chain 1 | . . 1 1 Shots Hit Robots 143 | . 30 49 64 Core Hits 81 | . 19 27 35 Critical Kills . | . . . . Critical Parts Destroyed . | . . . . Critical Strikes 1 | . . . 1 Burn 1 | . . . 1 Melee Attacks 6 | . . 3 3 Impact 6 | . . 3 3 Slashing . | . . . . Piercing . | . . . . Sneak Attacks . | . . . . Combat Hostiles . | . . . . Follow-up Attacks . | . . . . Damage Inflicted 2457 | . 391 782 1284 Guns 2382 | . 391 782 1209 Cannons . | . . . . Explosions 47 | . . . 47 Melee . | . . . . Ramming 28 | . . . 28 Kinetic 829 | . 391 388 50 Thermal 770 | . . 272 498 Explosive . | . . . . Electromagnetic 830 | . . 122 708 Impact . | . . . . Slashing . | . . . . Piercing . | . . . . Highest Corruption . | . . . . Average Corruption . | . . . . Corruption Purged . | . . . . Corruption Blocked . | . . . . Overload Shots . | . . . . Overflow Damage . | . . . . Projectiles . | . . . . Explosions . | . . . . Melee . | . . . . Knockbacks 1 | . . . 1 Impact 1 | . . . 1 Kinetic . | . . . . Secondary . | . . . . Self-Inflicted Damage 40 | . . . 40 Shots 1 | . . . 1 Rammed 8 | . . . 8 Targets Rammed 8 | . . . 8 Kicked . | . . . . Crushed . | . . . . Highest Temperature 227 | . 10 227 66 Average Temperature 40 | . 10 54 18 Received Heat Transfer 888 | . 108 213 567 Siege Activations . | . . . . Robots Corrupted . | . . . . Combat Hostiles . | . . . . Parts Fried 2 | . . . 2 Impact Corruptions . | . . . . Robots Melted . | . . . . Combat Hostiles . | . . . . Parts Melted . | . . . . Heat Transferred 1628 | . . 592 1036 Parts Sabotaged . | . . . . Parts Stolen . | . . . . Parts Stripped . | . . . . Power Chain Reactions 1 | . . . 1 Alert | -11 -10 -9 -8 ------- Run | Yrd Mat Mat Mat Peak Influence 486 | . 289 381 486 Initial 104 | . . 12 104 Average 168 | . 108 196 253 Maximum Alert Level 2 | . 1 1 2 Low Security (%) 55 | 100 85 36 26 Level 1 42 | . 14 63 61 Level 2 2 | . . . 12 Level 3 . | . . . . Level 4 . | . . . . Level 5 . | . . . . High Security . | . . . . Max Security . | . . . . Squads Dispatched 5 | . 2 1 2 Investigation 3 | . 2 . 1 Extermination . | . . . . Reinforcement 2 | . . 1 1 Assault . | . . . . Garrison . | . . . . Intercept . | . . . . Searches Triggered . | . . . . Construction Impeded . | . . . . Haulers Reinforced . | . . . . Active Scanning Responses . | . . . . Cargo Convoy Interrupts . | . . . . Stealth | -11 -10 -9 -8 --------- Run | Yrd Mat Mat Mat Distress Signals 5 | . 2 2 1 Communications Jammed . | . . . . Distress Signals . | . . . . Times Spotted 72 | . 21 21 30 Peak Tracking Total 7 | . 5 6 7 Tactical Retreats 8 | . 1 3 4 Traps | -11 -10 -9 -8 ------- Run | Yrd Mat Mat Mat Traps Triggered 3 | . 1 . 2 Indirectly . | . . . . Trap Hack Attempts . | . . . . Triggered . | . . . . Disarmed . | . . . . Reprogrammed . | . . . . Reused . | . . . . Traps Extracted . | . . . . Installed . | . . . . Triggered . | . . . . Machines | -11 -10 -9 -8 ---------- Run | Yrd Mat Mat Mat Machines Disabled . | . . . . Max in Single Turn . | . . . . Machines Repaired . | . . . . Machines Dismantled . | . . . . Machines Sabotaged . | . . . . Overloaded Fab Kills . | . . . . Hacking | -11 -10 -9 -8 --------- Run | Yrd Mat Mat Mat Machines Accessed 9 | . 6 3 . Terminals 8 | . 5 3 . Fabricators . | . . . . Repair Stations 1 | . 1 . . Recycling Units . | . . . . Scanalyzers . | . . . . Garrison Access . | . . . . Total Hacks 14 | . 10 4 . Successful 7 | . 5 2 . Failed 7 | . 5 2 . Catastrophic . | . . . . Database Lockouts . | . . . . Manual 10 | . 8 2 . Terminals 12 | . 8 4 . Fabricators . | . . . . Repair Stations 2 | . 2 . . Recycling Units . | . . . . Scanalyzers . | . . . . Garrison Access . | . . . . Terminal Hacks 2 | . . 2 . Alert Level 2 | . . 2 . Fabricator Hacks . | . . . . Repair Station Hacks 1 | . 1 . . Refit 1 | . 1 . . Recycling Unit Hacks . | . . . . Scanalyzer . | . . . . Garrison Access Hacks . | . . . . Unauthorized Hacks 4 | . 4 . . Terminals 4 | . 4 . . Botnet 4 | . 4 . . Fabricators . | . . . . Repair Stations . | . . . . Recycling Units . | . . . . Scanalyzers . | . . . . Garrison Access . | . . . . Data Cores Recovered . | . . . . Used . | . . . . Hacking Detections 6 | . 3 3 . Full Trace Events 1 | . 1 . . Feedback Events . | . . . . Feedback Blocked . | . . . . Robot Schematics Acquired . | . . . . Robots Built . | . . . . Authchips . | . . . . Time . | . . . . Total Robot Build Rating . | . . . . Part Schematics Acquired . | . . . . Parts Built . | . . . . Authchips . | . . . . Time . | . . . . Total Part Build Rating . | . . . . Parts Repaired . | . . . . Time . | . . . . Parts Recycled . | . . . . Recycled Matter . | . . . . Retrieved Matter . | . . . . Retrieved Components . | . . . . Parts Scanalyzed . | . . . . Part Schematics Acquired . | . . . . Parts Damaged . | . . . . Bothacking | -11 -10 -9 -8 ------------ Run | Yrd Mat Mat Mat Used RIF Installer . | . . . . Robots Hacked . | . . . . Non-combat . | . . . . Combat . | . . . . Robot Hacks Applied . | . . . . Relay Couplers Released . | . . . . Fabnet Peak Effective % . | . . . . Robots Rewired . | . . . . Allies Hacked . | . . . . Hacks Repelled . | . . . . Allies | -11 -10 -9 -8 -------- Run | Yrd Mat Mat Mat Total Allies . | . . . . Largest Group . | . . . . Highest-Rated Group . | . . . . Highest-Rated Ally . | . . . . Total Orders . | . . . . Ally Attacks . | . . . . Total Damage . | . . . . Kills . | . . . . Allies Corrupted . | . . . . Allies Melted . | . . . . Intel | -11 -10 -9 -8 ------- Run | Yrd Mat Mat Mat Robot Analysis Total . | . . . . Derelict Logs Recovered . | . . . . Drone Launches . | . . . . Drone Recoveries . | . . . . Exploration | -11 -10 -9 -8 ------------- Run | Yrd Mat Mat Mat Turns Passed 2683 | 42 1104 982 555 Spaces Moved 1316 | 31 490 504 291 Core 20 | 7 . . 13 Treads 792 | . 191 504 97 Legs . | . . . . Wheels 425 | 24 299 . 102 Hover 79 | . . . 79 Flight . | . . . . Fastest Speed 50 | 50 90 160 50 Average Speed 164 | 80 198 160 121 Slowest Speed 750 | 90 320 160 750 Overloaded Moves . | . . . . Propulsion Burnouts . | . . . . Robots Hopped . | . . . . Cave-ins Triggered . | . . . . Exploration Rate (%) 41 | 3 80 51 31 Regions Visited 3 Branch Regions . Pre-discovered Areas . | . . . . Known Exits Taken . | . . . . Unknown Exits Taken 3 | 1 1 1 . Scrap Searched . | . . . . Spaces Dug 5 | . . 2 3 Terrain Destroyed 9 | . . 2 7 Melee 5 | . . 2 3 Projectile . | . . . . AOE 4 | . . . 4 Terrain Rammed . | . . . . Walls Destroyed . | . . . . Machines Disabled . | . . . . Actions | -11 -10 -9 -8 --------- Run | Yrd Mat Mat Mat Total 1627 | 47 563 621 396 Wait 41 | . 29 2 10 Move 1313 | 30 489 503 291 Hop . | . . . . Pick Up 56 | 12 9 24 11 Fast Attach 13 | . 1 3 9 Attach 19 | 5 2 3 9 Detach . | . . . . Swap 28 | . 5 15 8 Drop 34 | . 1 25 8 Fire 109 | . 27 43 39 Melee 6 | . . 3 3 Ram 2 | . . . 2 Kick . | . . . . Crush 6 | . . . 6 Escape Stasis . | . . . . Rewire . | . . . . Trap . | . . . . Miscellaneous . | . . . . Route ------- -11/Scrapyard -10/Materials (discovered 2 exits: *Mat x2) -9/Materials -8/Materials History --------- Turn | Location | Event 6 | -11/Scrapyard | Discovered new exit (range 15) 43 | -11/Scrapyard | Entered Materials 312 | -10/Materials | Build established: Mutant 328 | -10/Materials | Discovered new exit (range 15) 494 | -10/Materials | Discovered new exit (range 9) 1147 | -10/Materials | Entered another Materials area 1147 | -9/Materials | Evolved 2 slots: Propulsion x1, Utility x1 2097 | -9/Materials | Discovered new exit (range 13) 2129 | -9/Materials | Entered another Materials area 2129 | -8/Materials | Evolved 2 slots: Propulsion x1, Utility x1 2598 | -8/Materials | Core integrity fell below 50% 2626 | -8/Materials | Core integrity fell below 20% 2653 | -8/Materials | Lost 10 parts (2p4n2u2w) 2684 | -8/Materials | Destroyed by Y-45 Defender with Beam Rifle Last Messages --------------- 02636_ Terminal disabled. 02637_ Slug penetrates Wall. 02637_ G-47 Trooper destroyed. 02640_ Dropped Minigun. 02640_ Acquired Mic. Nuclear Core. 02649_ Drone sends a signal. 02656_ R-06 Scavenger collects Particle Gun. 02659_ R-06 Scavenger collects Aluminum Leg. 02668_ Penetrated by Slug. 02676_ Com. Matter Pod destroyed. 02676_ Triggered Blade Trap. 02676_ Massive razor-sharp blades shoot up from within the floor. 02676_ Aerolev Unit severed. 02676_ Hvy. Hammer severed. 02676_ ECM Suite severed. 02677_ Acquired Aerolev Unit. 02680_ Acquired Hvy. Hammer. 02681_ Aerolev Unit destroyed. 02684_ Imp. Terrain Scanner destroyed. Map ----- +----------------------------------------------------+ | | | | | | | | | | | | | | | | | | | | | | | | | | | | | | | | | ######???????????????????????????????????????????? | | ! """ ????????########???????????????????????????? | | "Y" ????????#!![[**#???????????????????????????? | | #########!![[ *#???????????????????????????? | | ! # # [ #???????????????????????????? | | # # ########+#??????????????????? | | # #??????????????????? | | + h ! = ##?????????????????? | | """ # Y #??????????????????? | | """ # #### ^ @ #??????????????????? | | """ # #??# #??????????????????? | | """ ###"#####??# g"" !!! ##?????????????????? | | """ # ####### " !! #?????????????????? | | # / h "" !! #?????????????????? | | ? ] # * ##"#### #???????##????????? | | ## #### ####??# ! % #????? #?????????? | | ?##???# #?????###+####### ##??? #?????????? | | ??????# "#??????????????# #? #?????????? | | ??????# T#??????????????# r # ? ????????? | | ??????# "#??????????????# + ?????????????? | | ??????# #??????????????# # ???????????????? | | ??????###"##????#?????????# [# ??????????????? | | ????????###???????????????###]###??????# ??????? | | ????????????????????????????# #????????#+##??????? | | ????????????????????????????#!#????????# ##??????? | | ????????????????????????????# #???? # ##??????? | | ???????????????????????????## ##???##+## ###?????? | | ???????????????????????????##!##???## ##??????? | | ????????????????????#??????## ####### ##??????? | | ???????????????????????????## # ### ##??????? | | ???????????????????????????## " ### ##??????? | | ???????????????????????????## ### ##??????? | | ???????????????????#??????### # #### ##?????## | | ??????????????????????????### ####### ### ?? # | +----------------------------------------------------+ Best States ------------- Heat Dissipation 50 Energy Generation 14 Energy Capacity 265 Matter Stores 450 Matter Capacity 450 Sight Range 16 Terrain Scan Range 16 Terrain Scan Density 10 ECM Strength 1 Armor Coverage 150 Evasion (%) 55 Recoil Reduction 3 Particle Charging 15 Offensive Hacking 10 Item Schematics ----------------- None Robot Schematics ------------------ None Fabricated ------------ Nothing Alien Tech Used ----------------- None Achievements -------------- None Challenges ------------ None Game ------ Seed CentriumMomentumField Manual? 0 Play Time 00:27:06 Cumulative 219.3 hours Start 2025.04.25 @ 18:03:21 End 2025.04.25 @ 18:35:34 Sessions 1 Manual Loads 0 Difficulty Rogue Special Mode None Game No. 317 Rogue 317 Adventurer 0 Explorer 0 Win Type - Total 1 Types 1/0/0/0/0/0/0/0/0 Lore% 34 Gallery% 63 Achievement% 42 Wizard Run 0 Options --------- Layout 1 ASCII 0 Keyboard 0 Movement Mouse Keybinds 0 Fullscreen 2 Font 24/Smallcaps Map View 50x35 Zoom Use 0% Tactical HUD 1 Map Filters NONE Filters NONE Steam 1 RUN: ffb15fb3-fde8-44f1-9318-0fe4091dc753